bitfinex/quotes_SOLUSD_20240829
["timestamp","ask_amount","ask_price","bid_price","bid_amount"]
[1724892178732,26.9118,144.68,144.61,45.12549]
[1724892179533,26.9118,144.68,144.61,46.50827431]
[1724892179851,26.9118,144.68,144.61,46.38278431]
[1724892180055,26.9118,144.68,144.61,45.0]
[1724892180238,26.9118,144.68,144.6,16.3656]
[1724892181257,15.2825,144.73,144.61,51.29699]
[1724892181427,6.9104,144.71,144.62,0.12549]
[1724892181785,6.9104,144.71,144.62,1.50806737]
[1724892183551,52.1579938,144.7,144.62,1.50806737]
[1724892183747,32.1579938,144.68,144.61,51.29699]
[1724892184057,32.1579938,144.68,144.61,51.1715]
[1724892184259,32.1579938,144.66,144.6,16.3656]
[1724892184635,32.1579938,144.64,144.58,7.23475566]
[1724892184837,32.1579938,144.62,144.56,16.5124]
[1724892185337,32.1579938,144.62,144.56,17.89569408]
[1724892186235,32.1579938,144.62,144.56,16.5124]
[1724892187775,6.9138,144.64,144.56,16.5124]
[1724892187776,32.1579938,144.64,144.56,16.5124]
[1724892187939,20.0,144.63,144.57,0.12549]
[1724892188338,20.0,144.63,144.57,45.12549]
[1724892188734,32.1579938,144.64,144.57,45.12549]
[1724892190556,32.1579938,144.66,144.57,45.12549]
[1724892190761,20.0,144.65,144.58,6.44999]
[1724892190954,32.1579938,144.68,144.59,45.64176221]
[1724892192062,32.1579938,144.68,144.59,45.12549]
[1724892192240,20.0,144.67,144.59,45.12549]
[1724892193294,20.0,144.67,144.6,0.12549]
[1724892193445,32.1579938,144.69,144.6,0.12549]
[1724892193664,32.1579938,144.69,144.61,15.8293]
[1724892193847,32.1579938,144.69,144.62,45.0]
[1724892194363,39.0693938,144.69,144.62,45.0]
[1724892194537,32.1579938,144.67,144.61,15.8293]
[1724892194852,32.1579938,144.67,144.58,6.3245]
[1724892194853,6.9127,144.66,144.58,6.3245]
[1724892195058,32.1579938,144.65,144.58,6.3245]
[1724892195450,32.1579938,144.67,144.58,6.3245]
[1724892196342,39.0701938,144.67,144.59,45.12549]
[1724892197866,32.1579938,144.65,144.58,6.3245]
[1724892198664,39.0703938,144.67,144.58,6.3245]
[1724892198865,20.0,144.66,144.58,6.3245]
[1724892199248,20.0,144.66,144.59,45.0]
[1724892200157,20.0,144.66,144.6,0.34762624]
[1724892200865,20.0,144.66,144.59,45.0]
[1724892201365,32.1579938,144.67,144.59,45.0]
[1724892201565,32.1579938,144.67,144.6,2.62901819]
[1724892201868,32.1579938,144.67,144.59,45.0]
[1724892202441,32.1579938,144.67,144.6,0.46675337]
[1724892203289,32.1579938,144.67,144.59,45.0]
[1724892204665,32.1579938,144.67,144.6,0.47041738]
[1724892205155,32.1579938,144.69,144.61,0.12549]
[1724892205354,32.1579938,144.69,144.61,0.59587498]
[1724892205562,32.1579938,144.69,144.62,15.438]
[1724892205805,32.1579938,144.69,144.63,0.47031993]
[1724892206458,32.1579938,144.69,144.62,15.438]
[1724892209576,39.0683938,144.71,144.62,15.438]
[1724892209775,20.0,144.7,144.63,46.50806718]
[1724892209981,32.86918469,144.7,144.63,46.50806718]
[1724892211746,32.86918469,144.7,144.63,52.65726718]
[1724892213669,12.86918469,144.66,144.62,15.438]
[1724892214077,12.86918469,144.68,144.62,15.438]
[1724892215851,12.86918469,144.68,144.63,45.12549]
[1724892221181,26.911,144.7,144.64,6.4617]
[1724892221480,39.78018469,144.7,144.64,6.4617]
[1724892224471,32.86918469,144.7,144.64,6.4617]
[1724892226087,12.86918469,144.66,144.64,6.4617]
[1724892226281,12.86918469,144.66,144.6,6.3874]
[1724892226483,12.86918469,144.61,144.58,16.3334]
[1724892226980,12.86918469,144.61,144.56,6.3103]
[1724892227982,32.21133515,144.62,144.56,6.3103]
[1724892234573,32.21133515,144.6,144.54,16.3334]
[1724892236385,32.21133515,144.62,144.54,16.3334]
[1724892236386,32.21133515,144.58,144.54,16.3334]
[1724892237301,39.12703515,144.6,144.54,16.3334]
[1724892237495,32.21133515,144.58,144.5,7.23869426]
[1724892237691,32.21133515,144.58,144.51,65.25098]
[1724892238208,39.12703515,144.6,144.51,65.25098]
[1724892239162,279.2345,144.65,144.52,53.66963515]
[1724892239163,32.21133515,144.64,144.52,53.66963515]
[1724892239285,32.21133515,144.64,144.53,65.25098]
[1724892239486,39.12533515,144.64,144.53,65.25098]
[1724892239705,32.21133515,144.62,144.53,65.25098]
[1724892242128,32.21133515,144.62,144.54,1.08148706]
[1724892242409,32.21133515,144.62,144.55,1.33241301]
[1724892244299,32.21133515,144.62,144.56,1.15339325]
[1724892245420,32.21133515,144.62,144.55,1.40437324]
[1724892246920,39.12443515,144.66,144.57,6.3978]
[1724892247093,39.12443515,144.66,144.58,45.12549]
[1724892247294,6.9133,144.65,144.58,45.12549]
[1724892247995,12.88006571,144.64,144.58,45.12549]
[1724892249220,12.88006571,144.64,144.58,46.01540481]
[1724892249991,12.88006571,144.64,144.58,45.12549]
[1724892251813,19.79386571,144.64,144.58,45.0]
[1724892252000,19.79386571,144.64,144.57,6.3978]
[1724892252001,12.88006571,144.62,144.57,6.3978]
[1724892252202,12.88006571,144.6,144.56,15.2226]
[1724892254494,23.3488,144.69,144.56,15.2226]
[1724892254694,12.88006571,144.66,144.58,6.0346]
[1724892254922,20.0,144.65,144.58,6.0346]
[1724892255291,15.8343,144.68,144.58,6.0346]
[1724892255604,12.88006571,144.67,144.59,45.25098]
[1724892255843,12.88006571,144.67,144.6,15.03]
[1724892256200,19.79146571,144.69,144.61,45.12549]
[1724892256400,19.79146571,144.69,144.62,0.12549]
[1724892257009,20.0,144.68,144.62,0.12549]
[1724892257700,32.88006571,144.7,144.62,0.12549]
[1724892258102,20.0,144.7,144.62,0.12549]
[1724892262221,20.0,144.7,144.62,1.3984266]
[1724892262425,20.0,144.7,144.63,6.6568]
[1724892262619,20.0,144.7,144.64,46.27276058]
[1724892262811,20.0,144.7,144.65,1.27267258]
[1724892263019,32.17368989,144.73,144.65,17.73737258]
[1724892263214,32.17368989,144.75,144.66,45.25098]
[1724892263930,32.17368989,144.77,144.67,6.2076]
[1724892264230,39.08118989,144.77,144.68,45.25098]
[1724892264632,39.08118989,144.77,144.69,0.37538301]
[1724892265538,20.0,144.76,144.69,0.37538301]
[1724892265712,20.0,144.76,144.69,0.64515745]
[1724892265912,39.08118989,144.77,144.69,0.64515745]
[1724892267308,20.0,144.76,144.69,0.64515745]
[1724892269715,20.0,144.76,144.71,15.0247]
[1724892269915,55.56318989,144.79,144.71,15.0247]
[1724892270438,20.0,144.78,144.71,15.0247]
[1724892272232,32.17368989,144.77,144.71,15.0247]
[1724892273335,32.17368989,144.77,144.72,0.64502371]
[1724892273562,20.0,144.78,144.72,51.98837999]
[1724892273715,39.07938989,144.81,144.72,51.98837999]
[1724892273918,20.0,144.8,144.72,51.98837999]
[1724892274118,20.0,144.8,144.73,1.37925578]
[1724892274734,20.0,144.8,144.74,1.37916048]
[1724892276040,32.17368989,144.81,144.75,1.37906528]
[1724892276836,32.17368989,144.83,144.75,1.37906528]
[1724892277342,32.17368989,144.83,144.76,0.12549]
[1724892277547,6.9042,144.84,144.76,0.12549]
[1724892277548,419.37738989,144.85,144.77,15.6179]
[1724892277748,39.07738989,144.85,144.77,15.6179]
[1724892278131,32.17368989,144.83,144.77,15.6179]
[1724892280121,12.84799439,144.82,144.77,15.6179]
[1724892281243,12.84799439,144.83,144.78,6.6629]
[1724892283647,6.9032,144.86,144.79,45.12549]
[1724892283842,12.84799439,144.84,144.79,45.12549]
[1724892284218,20.0,144.83,144.79,45.12549]
[1724892285829,20.0,144.83,144.78,6.6629]
[1724892286032,12.84799439,144.82,144.78,6.6629]
[1724892287855,12.84799439,144.8,144.77,15.6179]
[1724892288448,12.84799439,144.8,144.74,6.32]
[1724892289867,12.84799439,144.8,144.75,45.12549]
[1724892291550,12.84799439,144.8,144.76,0.88809252]
[1724892294054,12.84799439,144.8,144.75,45.12549]
[1724892299141,12.84799439,144.8,144.76,1.38134851]
[1724892300765,12.84799439,144.8,144.75,45.12549]
[1724892301367,6.9051,144.82,144.75,45.12549]
[1724892301368,12.84799439,144.82,144.75,45.12549]
[1724892301561,20.0,144.81,144.75,45.12549]
[1724892302661,12.84799439,144.8,144.75,45.12549]
[1724892303164,12.84799439,144.78,144.74,6.32]
[1724892303481,6.9061,144.8,144.73,16.1119]
[1724892303760,12.84799439,144.78,144.73,16.1119]
[1724892305071,12.84799439,144.78,144.7,13.57574417]
[1724892305072,12.84799439,144.76,144.7,13.57574417]
[1724892306571,12.84799439,144.76,144.71,45.12549]
[1724892307469,16.3505,144.8,144.7,6.3471]
[1724892307470,12.84799439,144.74,144.7,6.3471]
[1724892308266,12.84799439,144.74,144.69,15.6593]
[1724892309366,12.84799439,144.76,144.7,45.12549]
[1724892309565,20.0,144.75,144.7,45.12549]
[1724892309744,12.84799439,144.74,144.7,45.12549]
[1724892311378,12.84799439,144.74,144.7,45.0]
[1724892311678,12.84799439,144.72,144.67,6.0802]
[1724892311866,12.84799439,144.7,144.67,6.0802]
[1724892312064,12.84799439,144.7,144.65,16.4377]
[1724892312562,12.84799439,144.68,144.65,16.4377]
[1724892313578,6.9099,144.72,144.65,16.4377]
[1724892313781,20.0,144.71,144.66,1.38232589]
[1724892313979,32.16319174,144.73,144.66,1.38232589]
[1724892314187,20.0,144.72,144.66,1.38232589]
[1724892314773,39.07159174,144.75,144.67,0.25098]
[1724892314981,32.16319174,144.75,144.67,1.63300092]
[1724892315280,32.16319174,144.75,144.67,0.25098]
[1724892316062,39.07169174,144.75,144.67,0.25098]
[1724892316262,20.0,144.74,144.67,0.25098]
[1724892317671,32.16319174,144.77,144.68,6.2761]
[1724892317877,52.16319174,144.77,144.69,45.25098]
[1724892318076,32.16319174,144.75,144.69,45.0]
[1724892318276,32.16319174,144.75,144.68,6.2761]
[1724892318870,52.16319174,144.77,144.69,0.12549]
[1724892319086,59.07079174,144.77,144.69,45.25098]
[1724892319473,32.16319174,144.75,144.69,45.25098]
[1724892319681,32.16319174,144.75,144.69,45.12549]
[1724892321084,6.908,144.76,144.65,16.4377]
[1724892321085,32.16319174,144.71,144.65,16.4377]
[1724892321259,20.0,144.74,144.65,16.4377]
[1724892321260,32.16319174,144.73,144.65,16.4377]
[1724892322491,32.16319174,144.71,144.65,16.4377]
[1724892322786,32.16319174,144.69,144.65,16.4377]
[1724892322989,32.16319174,144.69,144.61,23.1465]
[1724892322990,39.07469174,144.69,144.61,23.1465]
[1724892323163,32.16319174,144.67,144.61,23.1465]
[1724892323363,32.16319174,144.67,144.61,30.38061311]
[1724892324165,32.16319174,144.65,144.59,30.0]
[1724892324775,32.16319174,144.65,144.58,22.28144742]
[1724892325365,32.16319174,144.65,144.59,0.12549]
[1724892325566,32.16319174,144.65,144.59,45.0]
[1724892326081,32.16319174,144.67,144.59,45.0]
[1724892326288,20.0,144.66,144.59,45.0]
[1724892326489,6.9118,144.68,144.59,45.0]
[1724892326698,20.0,144.67,144.59,45.0]
[1724892326993,52.16319174,144.67,144.6,0.12549]
[1724892327195,52.16319174,144.67,144.6,0.25098]
[1724892329080,52.16319174,144.67,144.6,1.63157414]
[1724892329387,52.16319174,144.67,144.6,0.25098]
[1724892333890,59.07549174,144.67,144.6,0.25098]
[1724892338682,20.0,144.67,144.6,0.25098]
[1724892338997,32.16319174,144.76,144.6,0.25098]
[1724892338998,6.9114,144.69,144.6,0.25098]
[1724892339177,52.16319174,144.68,144.6,0.25098]
[1724892342385,52.16319174,144.68,144.61,6.1065]
[1724892342386,20.0,144.68,144.61,6.1065]
[1724892342583,20.0,144.69,144.62,45.25098]
[1724892344309,32.16319174,144.68,144.62,45.25098]
[1724892344517,32.16319174,144.68,144.62,45.0]
[1724892346006,12.87526905,144.66,144.62,45.0]
[1724892353514,12.87526905,144.68,144.63,0.12549]
[1724892354398,12.87526905,144.66,144.63,0.12549]
[1724892355216,12.87526905,144.64,144.58,21.2121]
[1724892355516,12.87526905,144.62,144.58,15.0457]
[1724892355731,12.87526905,144.62,144.55,2.94615756]
[1724892355732,12.87526905,144.6,144.55,23.68635859]
[1724892355890,12.87526905,144.6,144.48,50.0]
[1724892355891,12.87526905,144.57,144.52,16.0716]
[1724892356214,12.87526905,144.55,144.51,7.23898281]
[1724892356525,12.87526905,144.53,144.49,2.95060126]
[1724892356814,12.87526905,144.53,144.48,16.0716]
[1724892357112,12.87526905,144.51,144.47,6.073]
[1724892357286,12.87526905,144.49,144.44,16.0716]
[1724892357489,12.87526905,144.49,144.44,23.31407225]
[1724892358010,32.26196193,144.51,144.44,23.31407225]
[1724892359011,32.26196193,144.51,144.45,45.25098]
[1724892359903,32.26196193,144.55,144.46,1.38214499]
[1724892360102,20.0,144.54,144.47,0.25098]
[1724892360308,32.26196193,144.53,144.45,45.0]
[1724892360693,32.26196193,144.53,144.46,0.25098]
[1724892361614,20.0,144.54,144.46,0.25098]
[1724892365528,32.26196193,144.53,144.46,0.25098]
[1724892366615,20.0,144.54,144.46,0.25098]
[1724892367008,32.26196193,144.53,144.46,0.25098]
[1724892367423,32.26196193,144.51,144.44,23.31407225]
[1724892367947,32.26196193,144.51,144.44,16.0716]
[1724892368436,39.18206193,144.51,144.43,6.073]
[1724892368920,32.26196193,144.49,144.43,6.073]
[1724892369224,32.26196193,144.46,144.41,7.24347846]
[1724892369431,32.26196193,144.46,144.4,16.3673]
[1724892369432,32.26196193,144.44,144.38,6.6242]
[1724892369732,32.26196193,144.46,144.38,6.6242]
[1724892370425,39.18436193,144.46,144.38,6.6242]
[1724892370800,39.18436193,144.46,144.39,1.38495517]
[1724892371234,39.18436193,144.46,144.38,6.6242]
[1724892371235,32.26196193,144.48,144.4,1.38487759]
[1724892371533,39.18256193,144.5,144.41,0.12549]
[1724892371715,20.0,144.49,144.41,1.63555103]
[1724892372123,32.26196193,144.48,144.41,0.25098]
[1724892372306,32.26196193,144.48,144.41,0.12549]
[1724892372716,20.0,144.49,144.41,1.63565635]
[1724892372937,20.0,144.49,144.41,0.25098]
[1724892373129,32.26196193,144.48,144.41,0.25098]
[1724892373305,32.26196193,144.48,144.41,0.12549]
[1724892373508,20.0,144.49,144.41,0.25098]
[1724892374504,15.1147,144.53,144.4,50.0]
[1724892374709,6.6529,144.54,144.42,15.7528]
[1724892374710,6.9186,144.54,144.42,15.7528]
[1724892374904,6.9186,144.54,144.44,6.2062]
[1724892375824,6.9186,144.54,144.45,45.25098]
[1724892376131,32.26196193,144.53,144.46,1.38209238]
[1724892377230,6.9186,144.54,144.46,1.38209238]
[1724892377408,32.26196193,144.55,144.47,0.12549]
[1724892377409,20.0,144.53,144.47,0.12549]
[1724892378143,26.9186,144.54,144.45,45.12549]
[1724892378327,26.9186,144.54,144.46,0.12549]
[1724892378837,6.919,144.53,144.46,0.12549]
[1724892379131,20.0,144.52,144.45,45.0]
[1724892379430,20.0,144.52,144.46,0.25098]
[1724892379610,20.0,144.52,144.45,45.0]
[1724892380006,20.0,144.52,144.46,0.12549]
[1724892384639,20.0,144.52,144.45,45.0]
[1724892386036,20.0,144.52,144.46,0.4340135]
[1724892387141,32.26196193,144.57,144.48,15.599]
[1724892387451,32.26196193,144.59,144.5,6.1871]
[1724892387643,32.26196193,144.59,144.51,0.88854762]
[1724892387819,32.26196193,144.59,144.52,0.90766365]
[1724892388019,434.67086193,144.61,144.53,0.12549]
[1724892388218,427.75566193,144.61,144.53,0.25098]
[1724892388444,380.3,144.61,144.54,0.94404885]
[1724892389423,412.56196193,144.61,144.53,1.06953885]
[1724892389925,20.0,144.6,144.54,1.38346677]
[1724892393242,20.0,144.6,144.53,1.50895676]
[1724892393655,26.916,144.6,144.53,0.12549]
[1724892393829,26.916,144.6,144.52,0.12549]
[1724892394733,20.0,144.6,144.52,0.12549]
[1724892396444,20.0,144.6,144.53,15.1235]
[1724892396749,20.0,144.6,144.54,46.63259559]
[1724892396937,20.0,144.6,144.55,1.38152]
[1724892400345,48.20756193,144.65,144.55,1.38152]
[1724892400549,39.17426193,144.67,144.56,6.77518]
[1724892400748,39.17426193,144.67,144.57,46.38141519]
[1724892400953,39.17426193,144.67,144.58,1.63229964]
[1724892402051,26.9127,144.66,144.58,1.63229964]
[1724892405049,20.0,144.66,144.59,15.3475]
[1724892405237,34.5406,144.76,144.6,53.27276786]
[1724892405437,6.9109,144.7,144.61,1.3815724]
[1724892405961,6.9105,144.71,144.62,0.25098]
[1724892406260,6.9105,144.71,144.62,1.63236135]
[1724892406459,32.26196193,144.7,144.62,0.25098]
[1724892406639,32.26196193,144.7,144.61,0.25098]
[1724892407130,84.07316193,144.76,144.61,0.25098]
[1724892407131,32.26196193,144.72,144.61,0.25098]
[1724892407377,652.6573,144.77,144.62,15.3475]
[1724892407560,39.17056193,144.75,144.64,6.6403]
[1724892407760,32.26196193,144.73,144.65,46.63084229]
[1724892408343,32.26196193,144.73,144.65,45.25098]
[1724892408748,20.0,144.72,144.65,45.25098]
[1724892410266,20.0,144.73,144.65,45.25098]
[1724892411846,59.17156193,144.73,144.65,45.25098]
[1724892412045,6.91,144.72,144.65,45.25098]
[1724892412645,59.17146193,144.73,144.65,45.25098]
[1724892414275,52.26196193,144.73,144.65,45.25098]
[1724892414450,20.0,144.73,144.65,45.25098]
[1724892414662,39.17056193,144.75,144.65,45.25098]
[1724892414663,20.0,144.74,144.65,45.25098]
[1724892415478,26.909,144.74,144.65,45.25098]
[1724892419666,26.909,144.74,144.66,15.3237]
[1724892419865,26.909,144.74,144.67,45.25098]
[1724892420667,20.0,144.74,144.67,45.25098]
[1724892420874,6.9095,144.73,144.67,45.25098]
[1724892421179,20.0,144.72,144.67,45.25098]
[1724892421764,6.908,144.76,144.67,45.25098]
[1724892421964,39.16956193,144.77,144.67,45.25098]
[1724892422162,6.9081,144.76,144.67,45.25098]
[1724892422359,17.2653,144.8,144.67,45.25098]
[1724892422360,32.26196193,144.75,144.67,45.25098]
[1724892422565,39.17086193,144.75,144.67,45.25098]
[1724892422779,6.9091,144.74,144.67,45.25098]
[1724892423378,39.17036193,144.75,144.67,45.25098]
[1724892423556,20.0,144.74,144.67,45.25098]
[1724892424577,26.9089,144.74,144.67,45.25098]
[1724892426273,6.9094,144.73,144.66,15.3237]
[1724892426452,20.0,144.72,144.66,15.3237]
[1724892427680,26.9099,144.72,144.66,15.3237]
[1724892429960,20.0,144.72,144.66,15.3237]
[1724892430173,20.0,144.74,144.67,45.12549]
[1724892430375,26.9093,144.74,144.67,45.12549]
[1724892430759,20.0,144.74,144.67,45.12549]
[1724892430961,20.0,144.74,144.68,0.12549]
[1724892431265,6.908,144.76,144.68,1.01417993]
[1724892431266,20.0,144.75,144.68,1.01417993]
[1724892431466,20.0,144.75,144.69,0.12549]
[1724892432166,26.9085,144.75,144.68,0.25098]
[1724892432486,59.17046193,144.75,144.68,0.25098]
[1724892432666,59.17046193,144.75,144.68,0.12549]
[1724892432865,52.26196193,144.75,144.67,45.0]
[1724892433182,26.9085,144.75,144.67,45.0]
[1724892433385,26.9085,144.75,144.68,0.25098]
[1724892435980,39.76964644,144.75,144.68,0.25098]
[1724892436183,20.0,144.75,144.68,13.11212644]
[1724892436357,20.0,144.76,144.7,6.0437]
[1724892436578,19.76894644,144.77,144.7,6.0437]
[1724892437371,12.86114644,144.75,144.7,6.0437]
[1724892439579,2.84073153,144.78,144.66,21.9877]
[1724892439580,12.86114644,144.73,144.66,21.9877]
[1724892440878,6.9084,144.75,144.67,45.25098]
[1724892441183,26.9089,144.74,144.67,45.25098]
[1724892441369,39.77004644,144.74,144.67,45.12549]
[1724892441806,39.77004644,144.74,144.68,0.12549]
[1724892441989,39.77004644,144.74,144.67,45.12549]
[1724892442189,32.86114644,144.74,144.67,45.12549]
[1724892442488,32.86114644,144.74,144.68,0.12549]
[1724892442785,39.77004644,144.74,144.67,45.12549]
[1724892443028,12.86114644,144.72,144.66,21.9877]
[1724892445369,20.0,144.74,144.67,45.12549]
[1724892445575,12.86114644,144.76,144.67,45.12549]
[1724892445893,12.86114644,144.76,144.68,12.98663644]
[1724892446070,12.86114644,144.76,144.69,45.12549]
[1724892446474,279.55494502,144.81,144.69,45.12549]
[1724892446677,12.86114644,144.79,144.71,21.42]
[1724892446876,12.86114644,144.79,144.72,45.12549]
[1724892447170,380.3,144.8,144.72,45.12549]
[1724892447373,6.905,144.83,144.73,0.12549]
[1724892447583,19.76614644,144.83,144.73,0.12549]
[1724892448076,6.905,144.83,144.73,0.12549]
[1724892448269,12.86114644,144.81,144.73,0.12549]
[1724892449399,12.86114644,144.79,144.73,0.12549]
[1724892449989,39.03940278,144.81,144.73,0.12549]
[1724892450295,26.9064,144.8,144.71,21.42]
[1724892450671,20.0,144.8,144.71,21.42]
[1724892451597,26.9061,144.8,144.72,45.25098]
[1724892452682,32.13380278,144.79,144.71,21.42]
[1724892452892,39.04140278,144.77,144.71,21.42]
[1724892453196,20.0,144.76,144.71,21.42]
[1724892454320,20.0,144.78,144.71,21.42]
[1724892454686,20.0,144.78,144.72,45.0]
[1724892455087,20.0,144.78,144.73,0.37607193]
[1724892455394,26.9072,144.78,144.72,45.0]
[1724892456585,6.9077,144.77,144.71,21.42]
[1724892456902,39.04130278,144.77,144.71,21.42]
[1724892461915,32.13380278,144.77,144.67,22.2697]
[1724892462211,6.9091,144.74,144.67,22.2697]
[1724892462392,20.0,144.73,144.67,22.2697]
[1724892463613,20.0,144.73,144.68,45.0]
[1724892464188,20.0,144.74,144.68,45.0]
[1724892464414,20.0,144.76,144.68,45.0]
[1724892465013,20.0,144.76,144.69,0.25098]
[1724892465395,26.908,144.76,144.69,0.25098]
[1724892466411,6.9085,144.75,144.68,45.0]
[1724892466720,6.9094,144.74,144.68,45.0]
[1724892466889,20.0,144.73,144.68,45.0]
[1724892469015,6.9081,144.76,144.69,0.25098]
[1724892469311,20.0,144.75,144.69,0.25098]
[1724892471704,20.0,144.76,144.69,0.25098]
[1724892473814,20.0,144.76,144.68,45.0]
[1724892473815,12.85823802,144.75,144.68,45.0]
[1724892474158,12.85823802,144.73,144.68,45.0]
[1724892475319,12.85823802,144.75,144.68,45.0]
[1724892475696,12.85823802,144.75,144.69,0.25098]
[1724892476817,20.0,144.76,144.69,0.25098]
[1724892476994,19.76583802,144.77,144.69,0.25098]
[1724892477196,20.0,144.76,144.69,0.25098]
[1724892477603,12.85823802,144.75,144.69,0.25098]
[1724892480990,20.0,144.76,144.69,0.25098]
[1724892481321,20.0,144.78,144.69,0.25098]
[1724892481509,12.85823802,144.77,144.69,0.25098]
[1724892481694,20.0,144.76,144.69,0.25098]
[1724892482016,20.0,144.76,144.69,1.63132032]
[1724892484212,12.85823802,144.75,144.69,0.25098]
[1724892488002,26.908,144.76,144.68,7.22992657]
[1724892488003,12.85823802,144.71,144.68,7.22992657]
[1724892488318,12.85823802,144.69,144.63,23.1433]
[1724892488527,12.85823802,144.69,144.63,30.37616074]
[1724892489218,12.85823802,144.67,144.63,30.37616074]
[1724892489411,12.85823802,144.67,144.59,22.8793]
[1724892489616,51.43295208,144.69,144.59,22.8793]
[1724892489617,12.85823802,144.63,144.59,22.8793]
[1724892490814,12.85823802,144.65,144.59,22.8793]
[1724892491996,39.11293028,144.66,144.59,22.8793]
[1724892492214,20.0,144.65,144.59,22.8793]
[1724892492824,20.0,144.65,144.6,45.0]
[1724892493007,32.20023028,144.68,144.61,0.12549]
[1724892493200,20.0,144.67,144.61,0.25098]
[1724892493917,20.0,144.68,144.61,0.25098]
[1724892494325,52.20023028,144.68,144.61,0.25098]
[1724892497507,59.11203028,144.68,144.61,0.25098]
[1724892497722,59.11203028,144.68,144.61,1.39755062]
[1724892497912,20.0,144.68,144.61,1.39755062]
[1724892498509,20.0,144.68,144.61,0.25098]
[1724892502212,6.9122,144.67,144.59,30.11347615]
[1724892502434,32.20023028,144.66,144.59,30.11347615]
[1724892502631,39.11293028,144.66,144.59,30.11347615]
[1724892503311,16.1547,144.67,144.59,16.4015]
[1724892503513,32.20023028,144.64,144.59,16.4015]
[1724892503733,32.20023028,144.64,144.56,6.5236]
[1724892503734,32.20023028,144.62,144.57,7.23611071]
[1724892503912,39.11613028,144.6,144.55,16.066]
[1724892504548,32.20023028,144.58,144.52,13.23874458]
[1724892505030,39.11593028,144.6,144.52,13.23874458]
[1724892505206,32.20023028,144.6,144.52,13.23874458]
[1724892505935,32.20023028,144.6,144.53,45.25098]
[1724892506135,39.11583028,144.6,144.53,45.25098]
[1724892506339,32.20023028,144.58,144.53,45.0]
[1724892506633,39.11603028,144.6,144.52,13.23874458]
[1724892506936,39.11603028,144.6,144.53,45.12549]
[1724892507843,32.20023028,144.6,144.53,45.12549]
[1724892509029,32.20023028,144.62,144.53,45.12549]
[1724892509234,20.0,144.61,144.54,0.12549]
[1724892510229,26.9152,144.61,144.54,0.12549]
[1724892514016,12.88769571,144.6,144.54,0.12549]
[1724892518113,20.0,144.61,144.54,0.12549]
[1724892518319,12.88769571,144.62,144.54,0.12549]
[1724892519242,16.1547,144.67,144.55,28.14509571]
[1724892519533,12.88769571,144.65,144.56,45.25098]
[1724892520645,12.88769571,144.65,144.57,6.3418]
[1724892520838,12.88769571,144.65,144.58,45.25098]
[1724892520839,20.0,144.64,144.58,45.25098]
[1724892522243,20.0,144.64,144.59,0.61501331]
[1724892522738,20.0,144.64,144.58,45.25098]
[1724892523326,288.3806,144.71,144.58,45.25098]
[1724892523639,12.88769571,144.67,144.58,45.25098]
[1724892525146,12.88769571,144.65,144.58,45.25098]
[1724892525444,12.88769571,144.63,144.58,45.0]
[1724892525620,19.80189571,144.63,144.57,6.3418]
[1724892525821,12.88769571,144.61,144.57,6.3418]
[1724892526438,12.88769571,144.61,144.55,22.49231205]
[1724892527737,12.88769571,144.61,144.56,45.0]
[1724892529554,12.88769571,144.61,144.55,22.49231205]
[1724892530249,12.88769571,144.59,144.54,6.0933]
[1724892531244,12.88769571,144.59,144.52,7.23833905]
[1724892531637,12.88769571,144.59,144.53,45.0]
[1724892541138,19.80379571,144.59,144.53,45.0]
[1724892541328,36.04909571,144.59,144.53,45.0]
[1724892543151,29.13299571,144.59,144.53,45.0]
[1724892543348,71.55078284,144.62,144.53,45.0]
[1724892543349,12.88769571,144.61,144.54,0.12549]
[1724892543539,20.0,144.6,144.54,0.25098]
[1724892544758,20.0,144.63,144.55,12.88769571]